fUST/lending_fUST_20250822
["ID","MTS","AMOUNT","RATE_DAILY","PERIOD"]
[380499038,1755795047265,-160.0,0.00020368,2]
[380499040,1755795047275,-376.00439007,0.00020368,2]
[380499042,1755795047285,-160.0,0.00020368,2]
[380499045,1755795047296,-528.88070896,0.00020368,2]
[380499046,1755795047305,-160.0,0.00020368,2]
[380499048,1755795047315,-160.0,0.00020368,2]
[380499050,1755795047324,-160.0,0.00020368,2]
[380499052,1755795047334,-417.15472785,0.00020368,2]
[380499054,1755795047344,-160.0,0.00020368,2]
[380499073,1755795047504,-160.0,0.00020368,2]
[380499075,1755795047514,-151.0,0.000204,4]
[380499077,1755795047523,-151.0,0.000204,4]
[380499079,1755795047533,-480.0,0.00020459,2]
[380499081,1755795047543,-480.0,0.0002046,2]
[380499083,1755795047552,-1095.43,0.0002046,2]
[380499085,1755795047561,-480.0,0.0002046,2]
[380499087,1755795047570,-480.0,0.0002046,2]
[380499089,1755795047580,-583.84,0.0002046,2]
[380499091,1755795047590,-480.0,0.0002046,2]
[380499092,1755795047599,-664.45,0.0002046,2]
[380499094,1755795047611,-480.0,0.0002046,2]
[380499096,1755795047620,-480.0,0.0002046,2]
[380499098,1755795047630,-1097.54,0.0002046,2]
[380499100,1755795047640,-1178.02,0.0002046,2]
[380499102,1755795047649,-480.0,0.0002046,2]
[380499104,1755795047658,-668.64,0.0002046,2]
[380499106,1755795047668,-1323.08,0.0002046,2]
[380499108,1755795047677,-3924.97,0.0002046,2]
[380499110,1755795047687,-480.0,0.0002046,2]
[380499112,1755795047696,-645.86,0.0002046,2]
[380499114,1755795047706,-492.89,0.0002046,2]
[380499116,1755795047715,-825.56715496,0.00020463,2]
[380499118,1755795047725,-151.0,0.000205,4]
[380499120,1755795047736,-151.0,0.000205,4]
[380499122,1755795047746,-629.20908411,0.00020549,2]
[380499124,1755795047755,-6829.72,0.00020549,2]
[380499126,1755795047765,-480.0,0.00020549,2]
[380499128,1755795047774,-3896.16,0.00020549,2]
[380499130,1755795047784,-685.17,0.00020549,2]
[380499132,1755795047793,-1815.64,0.00020549,2]
[380499134,1755795047803,-570.84,0.00020549,2]
[380499136,1755795047812,-480.0,0.00020549,2]
[380499138,1755795047822,-1291.28,0.00020549,2]
[380499140,1755795047831,-283.47504982,0.00020549,2]
[380499142,1755795047840,-9091.79,0.00020549,2]
[380499144,1755795047850,-5174.42,0.00020549,2]
[380499146,1755795047861,-4066.25,0.00020549,2]
[380499148,1755795047870,-1256.41,0.00020549,2]
[380499150,1755795047879,-480.0,0.00020549,2]
[380499152,1755795047889,-3070.06,0.00020549,2]
[380499154,1755795047898,-1540.42,0.00020549,2]
[380499156,1755795047908,-1836.9,0.00020549,2]
[380499158,1755795047917,-4108.66,0.00020549,2]
[380499160,1755795047926,-480.0,0.00020549,2]
[380499162,1755795047936,-480.0,0.00020549,2]
[380499164,1755795047945,-745.25,0.00020549,2]
[380499166,1755795047954,-528.115971,0.00020549,2]
[380499168,1755795047964,-151.0,0.00020549,2]
[380499170,1755795047974,-528.115971,0.00020549,2]
[380499172,1755795047983,-528.115971,0.00020549,2]
[380499174,1755795047993,-528.115971,0.00020549,2]
[380499176,1755795048003,-500.0,0.0002056,2]
[380499178,1755795048013,-610.71,0.00020561,2]
[380499179,1755795048022,-480.0,0.00020561,2]
[380499181,1755795048032,-480.0,0.00020561,2]
[380499183,1755795048045,-480.0,0.00020561,2]
[380499185,1755795048054,-480.0,0.00020561,2]
[380499187,1755795048063,-480.0,0.00020561,2]
[380499189,1755795048073,-881.5,0.00020561,2]
[380499190,1755795048083,-551.63,0.00020561,2]
[380499191,1755795048092,-1400.33,0.00020561,2]
[380499192,1755795048102,-480.0,0.00020561,2]
[380499193,1755795048112,-551.92,0.00020561,2]
[380499194,1755795048122,-796.26,0.00020561,2]
[380499195,1755795048131,-480.0,0.00020561,2]
[380499196,1755795048141,-1370.52,0.00020561,2]
[380499197,1755795048150,-809.79,0.00020561,2]
[380499198,1755795048159,-480.0,0.00020561,2]
[380499199,1755795048168,-637.15,0.00020561,2]
[380499200,1755795048177,-480.0,0.00020561,2]
[380499201,1755795048186,-480.0,0.00020561,2]
[380499202,1755795048195,-480.0,0.00020561,2]
[380499203,1755795048204,-1224.43,0.00020561,2]
[380499204,1755795048213,-480.0,0.00020561,2]
[380499205,1755795048222,-480.0,0.00020561,2]
[380499206,1755795048231,-2000.06,0.00020561,2]
[380499207,1755795048241,-480.0,0.00020561,2]
[380499208,1755795048250,-480.0,0.00020561,2]
[380499209,1755795048259,-304.6730623,0.00020561,2]
[380499210,1755795048268,-480.0,0.00020561,2]
[380499211,1755795048277,-835.12,0.00020561,2]
[380499212,1755795048286,-480.0,0.00020561,2]
[380499213,1755795048295,-916.22,0.00020561,2]
[380499214,1755795048305,-480.0,0.00020561,2]
[380499215,1755795048314,-480.0,0.00020561,2]
[380499216,1755795048323,-669.48,0.00020561,2]
[380499217,1755795048332,-1984.32,0.00020561,2]
[380499218,1755795048342,-480.0,0.00020561,2]
[380499219,1755795048352,-480.0,0.00020561,2]
[380499220,1755795048364,-846.66,0.00020561,2]
[380499221,1755795048373,-1474.61,0.00020561,2]
[380499222,1755795048383,-480.0,0.00020561,2]
[380499223,1755795048394,-2158.3,0.00020561,2]
[380499224,1755795048403,-818.64,0.00020561,2]
[380499225,1755795048413,-638.32,0.00020561,2]
[380499226,1755795048423,-264.64400833,0.00020561,2]
[380499227,1755795048432,-814.21,0.00020561,2]
[380499228,1755795048441,-480.0,0.00020561,2]
[380499229,1755795048451,-480.0,0.00020561,2]
[380499230,1755795048460,-480.0,0.00020561,2]
[380499231,1755795048470,-480.0,0.00020561,2]
[380499232,1755795048479,-625.29,0.00020561,2]
[380499234,1755795048490,-308.21141182,0.00020561,2]
[380499235,1755795048499,-776.34,0.00020561,2]
[380499236,1755795048509,-480.0,0.00020561,2]
[380499237,1755795048518,-480.0,0.00020561,2]
[380499238,1755795048527,-480.0,0.00020561,2]
[380499240,1755795048537,-480.0,0.00020561,2]
[380499242,1755795048546,-480.0,0.00020561,2]
[380499243,1755795048556,-480.0,0.00020561,2]
[380499245,1755795048565,-480.0,0.00020561,2]
[380499247,1755795048574,-1654.95,0.00020561,2]
[380499249,1755795048584,-480.0,0.00020561,2]
[380499251,1755795048593,-480.0,0.00020561,2]
[380499253,1755795048603,-655.68,0.00020561,2]
[380499254,1755795048619,-552.32,0.00020561,2]
[380499255,1755795048629,-480.0,0.00020561,2]
[380499256,1755795048638,-2006.73,0.00020561,2]
[380499257,1755795048648,-596.98,0.00020561,2]
[380499258,1755795048658,-1793.25,0.00020561,2]
[380499260,1755795048668,-809.61,0.00020561,2]
[380499262,1755795048677,-878.8,0.00020561,2]
[380499264,1755795048687,-480.0,0.00020561,2]
[380499266,1755795048698,-928.8,0.00020561,2]
[380499268,1755795048707,-151.0,0.00020561,2]
[380499270,1755795048717,-151.0,0.00020561,2]
[380499272,1755795048727,-656.48,0.00020561,2]
[380499274,1755795048739,-850.56,0.00020561,2]
[380499276,1755795048749,-151.0,0.00020561,2]
[380499278,1755795048759,-1394.95,0.00020561,2]
[380499280,1755795048769,-151.0,0.00020561,2]
[380499282,1755795048778,-151.0,0.00020561,2]
[380499284,1755795048788,-151.0,0.00020561,2]
[380499286,1755795048798,-151.0,0.00020561,2]
[380499288,1755795048807,-1043.02,0.00020561,2]
[380499290,1755795048817,-480.0,0.00020561,2]
[380499292,1755795048826,-480.0,0.00020561,2]
[380499294,1755795048836,-151.0,0.00020561,2]
[380499296,1755795048846,-151.0,0.00020561,2]
[380499298,1755795048855,-151.0,0.00020561,2]
[380499299,1755795048868,-480.0,0.00020561,2]
[380499301,1755795048878,-151.0,0.00020561,2]
[380499303,1755795048889,-638.66,0.00020561,2]
[380499306,1755795048899,-480.0,0.00020561,2]
[380499307,1755795048909,-480.0,0.00020561,2]
[380499309,1755795048919,-1028.37,0.00020561,2]
[380499311,1755795048929,-1155.52,0.00020561,2]
[380499313,1755795048939,-480.0,0.00020561,2]
[380499315,1755795048949,-1884.4,0.00020561,2]
[380499317,1755795048958,-1939.3,0.00020561,2]
[380499319,1755795048968,-151.0,0.00020561,2]
[380499321,1755795048977,-1352.94,0.00020561,2]
[380499323,1755795048987,-878.109382,0.00020561,2]
[380499325,1755795048996,-151.0,0.00020561,2]
[380499327,1755795049005,-878.109382,0.00020561,2]
[380499329,1755795049014,-827.73,0.00020561,2]
[380499331,1755795049023,-878.109382,0.00020561,2]
[380499333,1755795049033,-878.109382,0.00020561,2]
[380499335,1755795049047,-151.0,0.00020561,2]
[380499337,1755795049056,-480.0,0.00020561,2]
[380499338,1755795049066,-151.0,0.00020561,2]
[380499339,1755795049075,-1149.3,0.00020561,2]
[380499340,1755795049085,-772.22,0.00020561,2]
[380499341,1755795049096,-1959.62,0.00020561,2]
[380499342,1755795049105,-819.96,0.00020561,2]
[380499343,1755795049117,-151.0,0.00020561,2]
[380499344,1755795049127,-151.0,0.00020561,2]
[380499345,1755795049137,-151.0,0.00020561,2]
[380499346,1755795049147,-151.0,0.00020561,2]
[380499347,1755795049157,-480.0,0.00020561,2]
[380499348,1755795049167,-2861.81,0.00020561,2]
[380499349,1755795049176,-151.0,0.00020561,2]
[380499350,1755795049186,-273.175278,0.00020561,2]
[380499351,1755795049196,-911.38,0.00020561,2]
[380499352,1755795049205,-151.0,0.00020561,2]
[380499353,1755795049216,-273.175278,0.00020561,2]
[380499354,1755795049226,-151.0,0.00020561,2]
[380499355,1755795049236,-273.175278,0.00020561,2]
[380499356,1755795049247,-1777.28,0.00020561,2]
[380499357,1755795049257,-151.0,0.00020561,2]
[380499358,1755795049267,-273.175278,0.00020561,2]
[380499359,1755795049276,-480.0,0.00020561,2]
[380499360,1755795049286,-480.0,0.00020561,2]
[380499361,1755795049296,-151.0,0.00020561,2]
[380499362,1755795049305,-2589.21,0.00020561,2]
[380499363,1755795049314,-948.27,0.00020561,2]
[380499364,1755795049323,-480.0,0.00020561,2]
[380499365,1755795049333,-480.0,0.00020561,2]
[380499366,1755795049343,-151.0,0.00020561,2]
[380499367,1755795049352,-151.0,0.00020561,2]
[380499368,1755795049363,-480.0,0.00020561,2]
[380499369,1755795049373,-13960.06,0.00020561,2]
[380499370,1755795049383,-1099.16,0.00020561,2]
[380499371,1755795049392,-151.0,0.00020561,2]
[380499372,1755795049401,-582.59,0.00020561,2]
[380499373,1755795049411,-516.15,0.00020561,2]
[380499374,1755795049420,-3881.61,0.00020561,2]
[380499375,1755795049429,-151.0,0.00020561,2]
[380499376,1755795049439,-151.0,0.00020561,2]
[380499377,1755795049448,-553.28,0.00020561,2]
[380499378,1755795049458,-480.0,0.00020561,2]
[380499379,1755795049467,-1665.3,0.00020561,2]
[380499380,1755795049477,-1698.24,0.00020561,2]
[380499381,1755795049486,-1146.03,0.00020561,2]
[380499382,1755795049496,-3256.89,0.00020561,2]
[380499383,1755795049505,-151.0,0.00020561,2]
[380499384,1755795049514,-151.0,0.00020561,2]
[380499385,1755795049523,-151.0,0.00020561,2]
[380499386,1755795049533,-1295.91,0.00020561,2]
[380499387,1755795049542,-480.0,0.00020561,2]
[380499388,1755795049552,-151.0,0.00020561,2]
[380499389,1755795049561,-480.0,0.00020561,2]
[380499390,1755795049571,-1543.62,0.00020561,2]
[380499391,1755795049580,-576.90347219,0.00020561,2]
[380499392,1755795049589,-2063.87488858,0.00020561,2]
[380499393,1755795049818,-10936.87511142,0.00020561,2]
[380499394,1755795049827,-480.0,0.00020561,2]
[380499395,1755795049837,-728.49,0.00020561,2]
[380499396,1755795049847,-480.0,0.00020561,2]
[380499397,1755795049857,-480.0,0.00020561,2]
[380499398,1755795049868,-1493.01,0.00020561,2]
[380499399,1755795049877,-480.0,0.00020561,2]
[380499400,1755795049886,-151.0,0.00020562,2]
[380499401,1755795049895,-151.0,0.00020562,2]
[380499402,1755795049905,-151.0,0.00020562,2]
[380499403,1755795049915,-151.0,0.00020562,2]
[380499404,1755795049924,-151.0,0.00020562,2]
[380499405,1755795049932,-151.0,0.00020562,2]
[380499406,1755795049942,-151.0,0.00020562,2]
[380499407,1755795049951,-3333.0,0.00020562,2]
[380499408,1755795049960,-151.0,0.00020562,2]
[380499409,1755795049969,-603.72,0.00020562,2]
[380499410,1755795049979,-305.074415,0.00020562,2]
[380499411,1755795049989,-151.0,0.00020562,2]
[380499412,1755795049998,-305.074415,0.00020562,2]
[380499413,1755795050008,-151.0,0.00020562,2]
[380499414,1755795050018,-151.0,0.00020562,2]
[380499415,1755795050027,-151.0,0.00020562,2]
[380499416,1755795050037,-151.0,0.00020562,2]
[380499417,1755795050055,-151.0,0.00020562,2]
[380499418,1755795050064,-151.0,0.00020562,2]
[380499419,1755795050074,-411.728134,0.00020562,2]
[380499420,1755795050084,-411.728134,0.00020562,2]
[380499421,1755795050094,-411.728134,0.00020562,2]
[380499422,1755795050103,-151.0,0.00020562,2]
[380499423,1755795050115,-151.0,0.00020562,2]
[380499424,1755795050129,-411.728134,0.00020562,2]
[380499425,1755795050139,-151.0,0.00020562,2]
[380499426,1755795050148,-151.0,0.00020562,2]
[380499427,1755795050158,-151.0,0.00020562,2]
[380499428,1755795050167,-151.0,0.00020562,2]
[380499429,1755795050177,-151.0,0.00020562,2]
[380499430,1755795050186,-151.0,0.00020562,2]
[380499431,1755795050196,-151.0,0.00020562,2]
[380499432,1755795050205,-151.0,0.00020562,2]
[380499433,1755795050215,-151.0,0.00020562,2]
[380499434,1755795050224,-151.0,0.00020562,2]
[380499435,1755795050233,-151.0,0.00020562,2]
[380499436,1755795050243,-151.0,0.00020562,2]
[380499437,1755795050252,-151.0,0.00020563,2]
[380499438,1755795050261,-480.0,0.00020563,2]
[380499439,1755795050272,-5317.09,0.00020563,2]
[380499440,1755795050281,-630.99,0.00020563,2]
[380499441,1755795050292,-2206.92,0.00020563,2]
[380499442,1755795050302,-567.83,0.00020563,2]
[380499443,1755795050311,-2337.19,0.00020563,2]
[380499444,1755795050321,-1824.3,0.00020563,2]
[380499445,1755795050330,-3790.51,0.00020563,2]
[380499446,1755795050340,-725.19,0.00020563,2]
[380499447,1755795050349,-1348.03,0.00020565,2]
[380499448,1755795050359,-831.39,0.00020565,2]
[380499449,1755795050368,-480.0,0.00020565,2]
[380499450,1755795050378,-1041.87,0.00020565,2]
[380499451,1755795050387,-480.0,0.00020565,2]
[380499452,1755795050398,-832.73,0.00020565,2]
[380499453,1755795050407,-480.0,0.00020565,2]
[380499454,1755795050419,-957.11,0.00020565,2]
[380499455,1755795050429,-645.56,0.00020565,2]
[380499456,1755795050438,-1110.54,0.00020565,2]
[380499457,1755795050448,-480.0,0.00020565,2]
[380499458,1755795050457,-756.48,0.00020565,2]
[380499459,1755795050466,-894.03,0.00020572,2]
[380499460,1755795050477,-505.31,0.00020572,2]
[380499461,1755795050486,-480.0,0.00020572,2]
[380499462,1755795050496,-835.36,0.00020572,2]
[380499463,1755795050505,-747.78,0.00020572,2]
[380499464,1755795050516,-480.0,0.00020572,2]
[380499465,1755795050525,-500.0,0.00020573,2]
[380499466,1755795050534,-500.0,0.00020573,2]
[380499467,1755795050543,-158.70669821,0.00020573,2]
[380499468,1755795050553,-500.0,0.00020573,2]
[380499469,1755795050563,-500.0,0.00020573,2]
[380499470,1755795050572,-500.0,0.00020573,2]
[380499471,1755795050581,-500.0,0.00020573,2]
[380499472,1755795050590,-500.0,0.00020573,2]
[380499473,1755795050599,-501.27875092,0.00020573,2]
[380499474,1755795050611,-500.31682805,0.00020573,2]
[380499475,1755795050620,-500.98765914,0.00020573,2]
[380499476,1755795050629,-500.0,0.00020573,2]
[380499477,1755795050638,-340.66240419,0.00020573,2]
[380499478,1755795050648,-400.78864852,0.00020573,2]
[380499479,1755795050657,-500.95345902,0.00020573,2]
[380499480,1755795050666,-258.79486515,0.00020573,2]
[380499481,1755795050676,-183.24857298,0.00020573,2]
[380499482,1755795050685,-500.0,0.00020573,2]
[380499483,1755795050695,-258.84184381,0.00020573,2]
[380499484,1755795050705,-500.0,0.00020573,2]
[380499485,1755795050715,-500.0,0.00020573,2]
[380499486,1755795050725,-188.79814454,0.00020573,2]
[380499487,1755795050734,-160.3201214,0.00020573,2]
[380499488,1755795050744,-500.0,0.00020573,2]
[380499489,1755795050754,-252.08946834,0.00020573,2]
[380499490,1755795050926,-500.0,0.00020573,2]
[380499491,1755795050936,-500.0,0.00020573,2]
[380499492,1755795050945,-500.96767132,0.00020573,2]
[380499493,1755795050955,-500.0,0.00020573,2]
[380499494,1755795050964,-500.35899027,0.00020573,2]
[380499495,1755795050974,-500.0,0.00020573,2]
[380499496,1755795050984,-500.34795841,0.00020573,2]
[380499497,1755795050993,-501.13578343,0.00020573,2]
[380499498,1755795051003,-500.0,0.00020573,2]
[380499499,1755795051012,-500.0,0.00020573,2]
[380499500,1755795051022,-500.0,0.00020573,2]
[380499501,1755795051031,-500.0,0.00020573,2]
[380499502,1755795051045,-500.0,0.00020573,2]
[380499503,1755795051057,-500.0,0.00020573,2]
[380499504,1755795051066,-501.57858725,0.00020573,2]
[380499505,1755795051076,-500.40802418,0.00020573,2]
[380499506,1755795051086,-500.0,0.00020573,2]
[380499507,1755795051095,-500.0,0.00020573,2]
[380499508,1755795051105,-500.0,0.00020573,2]
[380499509,1755795051116,-500.0,0.00020573,2]
[380499510,1755795051126,-500.0,0.00020573,2]
[380499511,1755795051135,-500.0,0.00020573,2]
[380499512,1755795051145,-500.0,0.00020573,2]
[380499513,1755795051155,-500.0,0.00020573,2]
[380499514,1755795051164,-500.0,0.00020573,2]
[380499515,1755795051173,-501.00116031,0.00020573,2]
[380499516,1755795051183,-500.0,0.00020573,2]
[380499517,1755795051192,-500.0,0.00020573,2]
[380499518,1755795051201,-500.0,0.00020573,2]
[380499519,1755795051211,-500.0,0.00020573,2]
[380499520,1755795051220,-500.0,0.00020573,2]
[380499521,1755795051229,-217.19220965,0.00020573,2]
[380499522,1755795051238,-500.59452197,0.00020573,2]
[380499523,1755795051247,-320.74606242,0.00020573,2]
[380499524,1755795051257,-500.0,0.00020573,2]
[380499525,1755795051266,-500.0,0.00020573,2]
[380499526,1755795051276,-500.0,0.00020573,2]
[380499527,1755795051284,-500.0,0.00020573,2]
[380499528,1755795051294,-517.08452299,0.00020573,2]
[380499529,1755795051303,-500.0,0.00020573,2]
[380499530,1755795051312,-500.0,0.00020573,2]
[380499531,1755795051321,-500.0,0.00020573,2]
[380499532,1755795051331,-537.54,0.00020573,2]
[380499533,1755795051340,-480.0,0.00020573,2]
[380499534,1755795051350,-480.0,0.00020573,2]
[380499535,1755795051359,-480.0,0.00020573,2]
[380499536,1755795051369,-629.66,0.00020573,2]
[380499537,1755795051379,-480.0,0.00020573,2]
[380499538,1755795051388,-480.0,0.00020573,2]
[380499539,1755795051398,-788.2,0.00020573,2]
[380499540,1755795051408,-480.0,0.00020573,2]
[380499541,1755795051417,-913.01,0.00020573,2]
[380499542,1755795051427,-480.0,0.00020573,2]
[380499543,1755795051436,-1125.06,0.00020573,2]
[380499544,1755795051446,-1231.36,0.00020573,2]
[380499545,1755795051455,-480.0,0.00020573,2]
[380499546,1755795051465,-480.0,0.00020573,2]
[380499547,1755795051475,-480.0,0.00020573,2]
[380499548,1755795051484,-480.0,0.00020573,2]
[380499549,1755795051494,-480.0,0.00020573,2]
[380499550,1755795051503,-480.0,0.00020573,2]
[380499551,1755795051513,-480.0,0.00020573,2]
[380499552,1755795051522,-307.39758245,0.00020573,2]
[380499553,1755795051532,-480.0,0.00020573,2]
[380499554,1755795051542,-590.71,0.00020573,2]
[380499555,1755795051551,-480.0,0.00020573,2]
[380499556,1755795051561,-480.0,0.00020573,2]
[380499557,1755795051570,-480.0,0.00020573,2]
[380499558,1755795051580,-480.0,0.00020573,2]
[380499559,1755795051590,-480.0,0.00020573,2]
[380499560,1755795051599,-480.0,0.00020573,2]
[380499561,1755795051609,-480.0,0.00020573,2]
[380499562,1755795051620,-480.0,0.00020573,2]
[380499563,1755795051629,-480.0,0.00020573,2]
[380499564,1755795051639,-730.69,0.00020573,2]
[380499565,1755795051648,-570.85,0.00020573,2]
[380499566,1755795051658,-480.0,0.00020573,2]
[380499567,1755795051667,-605.11,0.00020573,2]
[380499568,1755795051676,-480.0,0.00020573,2]
[380499569,1755795051686,-392.47998326,0.00020573,2]
[380499570,1755795051695,-595.08,0.00020573,2]
[380499571,1755795051705,-480.0,0.00020573,2]
[380499572,1755795051715,-480.0,0.00020574,2]
[380499573,1755795051724,-480.0,0.00020574,2]
[380499574,1755795051734,-480.0,0.00020574,2]
[380499575,1755795051743,-480.0,0.00020574,2]
[380499576,1755795051752,-480.0,0.00020574,2]
[380499577,1755795051762,-526.92,0.00020574,2]
[380499578,1755795051771,-649.0,0.00020574,2]
[380499579,1755795051781,-765.15,0.00020574,2]
[380499580,1755795051790,-1789.29,0.00020574,2]
[380499581,1755795051799,-681.76,0.00020574,2]
[380499582,1755795051809,-480.0,0.00020574,2]
[380499583,1755795051819,-480.0,0.00020574,2]
[380499584,1755795051829,-800.59,0.00020574,2]
[380499585,1755795051838,-304.47595,0.00020574,2]
[380499586,1755795051847,-304.47595,0.00020574,2]
[380499587,1755795051857,-304.47595,0.00020574,2]
[380499588,1755795051866,-304.47595,0.00020574,2]
[380499589,1755795051875,-151.0,0.00020574,2]
[380499590,1755795051885,-151.0,0.00020574,2]
[380499591,1755795051895,-480.0,0.00020574,2]
[380499592,1755795051904,-151.0,0.00020574,2]
[380499593,1755795051914,-151.0,0.00020574,2]
[380499594,1755795051923,-480.0,0.00020577,2]
[380499595,1755795051933,-480.0,0.00020577,2]
[380499596,1755795051943,-480.0,0.00020577,2]
[380499597,1755795051952,-480.0,0.00020577,2]
[380499598,1755795051962,-883.05,0.00020577,2]
[380499599,1755795051972,-554.03,0.00020577,2]
[380499600,1755795051982,-497.04,0.00020577,2]
[380499601,1755795051991,-480.0,0.00020577,2]
[380499602,1755795052000,-480.0,0.00020577,2]
[380499603,1755795052010,-480.0,0.00020577,2]
[380499604,1755795052019,-250.0,0.00020589,2]
[380499605,1755795052028,-1274.1314054,0.00020593,2]
[380499606,1755795052038,-151.0,0.000206,3]
[380499607,1755795052052,-451.02438407,0.00020621,2]
[380499608,1755795052062,-489.27788683,0.00020621,2]
[380499609,1755795052071,-1000.0,0.00020621,2]
[380499610,1755795052081,-501.66314512,0.00020621,2]
[380499611,1755795052090,-617.44463649,0.00020621,2]
[380499612,1755795052099,-1000.0,0.00020621,2]
[380499613,1755795052108,-1000.0,0.00020621,2]
[380499614,1755795052118,-500.0,0.00020621,2]
[380499615,1755795052128,-1000.0,0.00020621,2]
[380499617,1755795052137,-1005.06699274,0.00020621,2]
[380499619,1755795052147,-1000.0,0.00020621,2]
[380499621,1755795052157,-210.59916886,0.00020621,2]
[380499623,1755795052166,-174.03375128,0.00020621,2]
[380499625,1755795052175,-1000.0,0.00020621,2]
[380499627,1755795052184,-1000.0,0.00020621,2]
[380499629,1755795052193,-1001.874881,0.00020621,2]
[380499631,1755795052203,-1000.0,0.00020621,2]
[380499633,1755795052212,-500.0,0.00020621,2]
[380499635,1755795052221,-877.11592273,0.00020621,2]
[380499637,1755795052230,-1000.0,0.00020621,2]
[380499639,1755795052239,-1526.11463527,0.00020648,2]
[380499641,1755795052248,-151.0,0.000207,4]
[380499643,1755795052258,-480.0,0.00020733,2]
[380499645,1755795052268,-480.0,0.00020734,2]
[380499646,1755795052277,-1095.43,0.00020734,2]
[380499649,1755795052287,-480.0,0.00020734,2]
[380499650,1755795052297,-480.0,0.00020734,2]
[380499652,1755795052306,-583.84,0.00020734,2]
[380499654,1755795052315,-480.0,0.00020734,2]
[380499656,1755795052324,-664.45,0.00020734,2]
[380499658,1755795052334,-480.0,0.00020734,2]
[380499660,1755795052343,-480.0,0.00020734,2]
[380499662,1755795052352,-1097.54,0.00020734,2]
[380499664,1755795052362,-1178.02,0.00020734,2]
[380499666,1755795052371,-480.0,0.00020734,2]
[380499668,1755795052381,-668.64,0.00020734,2]
[380499670,1755795052390,-1323.08,0.00020734,2]
[380499672,1755795052400,-3924.97,0.00020734,2]
[380499674,1755795052409,-480.0,0.00020734,2]
[380499676,1755795052418,-645.86,0.00020734,2]
[380499678,1755795052428,-492.89,0.00020734,2]
[380499680,1755795052438,-2056.01629089,0.00020747,2]
[380499682,1755795052447,-1369.91513366,0.00020754,2]
[380499684,1755795052456,-6829.72,0.00020823,2]
[380499686,1755795052466,-480.0,0.00020823,2]
[380499688,1755795052475,-3896.16,0.00020823,2]
[380499690,1755795052485,-685.17,0.00020823,2]
[380499692,1755795052494,-1815.64,0.00020823,2]
[380499694,1755795052503,-570.84,0.00020823,2]
[380499696,1755795052513,-480.0,0.00020823,2]
[380499698,1755795052523,-1291.28,0.00020823,2]
[380499700,1755795052532,-9091.79,0.00020823,2]
[380499702,1755795052541,-5174.42,0.00020823,2]
[380499704,1755795052551,-4066.25,0.00020823,2]
[380499706,1755795052560,-1256.41,0.00020823,2]
[380499708,1755795052570,-480.0,0.00020823,2]
[380499710,1755795052579,-3070.06,0.00020823,2]
[380499712,1755795052589,-1540.42,0.00020823,2]
[380499714,1755795052599,-1836.9,0.00020823,2]
[380499716,1755795052609,-4108.66,0.00020823,2]
[380499718,1755795052620,-480.0,0.00020823,2]